{"text_format":"3","workbook":"xlsx","n_sheets":4,"sheets":["Начало","Расходы","Доходы","Сводка по прибыли и убыткам"],"not_rendered":{"charts":1},"read":"whole","date_system":"1900"}

{"sheet":"Начало","index":0,"n_rows":8,"n_cols":2,"rows_kept":8}
[null,"ОБ ЭТОМ ШАБЛОНЕ"]
[null,"Используйте эту книгу бюджета мероприятия, чтобы вести учет расходов на организацию мероприятия и доход от него."]
[null,"Укажите название мероприятия и введите сведения в таблицах на листах «Расходы» и «Доходы»."]
[null,"Итоговые суммы расходов и доходов рассчитываются автоматически."]
[null,"Сводка и диаграмма прибыли и убытков на листе «Сводка по прибыли и убыткам» обновляются автоматически."]
[null,"Примечание "]
[null,"В столбце A каждого листа содержатся дополнительные инструкции. Их текст намерено скрыт. Чтобы удалить этот текст, выделите столбец A и нажмите клавишу DELETE. "]
[null,"Чтобы получить дополнительные сведения о таблице, щелкните в ней ячейку, затем нажмите клавиши SHIFT+F10, выберите \"Таблица\", а затем — \"Замещающий текст\"."]

{"sheet":"Расходы","index":1,"n_rows":32,"n_cols":8,"rows_kept":32,"merged":[[0,1,0,2],[0,3,0,4],[2,1,3,1]]}
["Введите предполагаемые и фактические расходы для каждой категории в соответствующих таблицах на этом листе и укажите название мероприятия в ячейке D1, чтобы изменить заголовок этого и других листов. Подзаголовок этого листа указывается в ячейке H1. В ячейках этого столбца содержатся полезные инструкции по использованию этого листа. Дальнейшие инструкции представлены в ячейке A3.","Бюджет мероприятия",null,"Название мероприятия",{"$nulls":3},"РАСХОДЫ"]
[]
["Надпись «Общие расходы» находится в ячейке справа, надпись «Предполагаемые» — в ячейке G3, а надпись «Фактические» — в ячейке H3.","ОБЩИЕ РАСХОДЫ",{"$nulls":4},"Предполагаемые","Фактические"]
["Суммы предполагаемых (ячейка G4) и фактических (ячейка H4) общих расходов вычисляются автоматически. Дальнейшие инструкции представлены в ячейке A6.",{"$nulls":5},{"$f":"SUM(C11,C19,C25,C32,G11,G19,G24)","v":{"v":882,"d":"882.00 ₽"}},{"$f":"SUM(D11,D19,D25,D32,H11,H19,H24)","v":{"v":302,"d":"302.00 ₽"}}]
[]
["Введите расходы на помещение в таблице, начинающейся с ячейки справа, и расходы на угощения в таблице, начинающейся с ячейки F6. Дальнейшие инструкции представлены в ячейке A13.","Место проведения","Предполагаемые","Фактические",null,"Угощения","Предполагаемые","Фактические"]
[null,"Арендная плата",{"v":500,"d":"500.00 ₽"},null,null,"Еда"]
[null,"Обслуживающий персонал",{"$nulls":3},"Напитки",{"v":20,"d":"20.00 ₽"}]
[null,"Оборудование",{"$nulls":3},"Скатерти",null,{"v":20,"d":"20.00 ₽"}]
[null,"Столы и стулья",{"$nulls":3},"Обслуживающий персонал и чаевые"]
[null,"Итого",{"$f":"SUBTOTAL(109,Расходы_на_место_проведения[Предполагаемые])","v":{"v":500,"d":"500.00 ₽"}},{"$f":"SUBTOTAL(103,Расходы_на_место_проведения[Фактические])","v":{"v":0,"d":"0.00 ₽"}},null,"Итого",{"$f":"SUBTOTAL(109,Расходы_на_угощения[Предполагаемые])","v":{"v":20,"d":"20.00 ₽"}},{"$f":"SUBTOTAL(103,Расходы_на_угощения[Фактические])","v":{"v":1,"d":"1.00 ₽"}}]
[]
["Введите расходы на украшения в таблице, начинающейся с ячейки справа, и расходы на программу в таблице, начинающейся с ячейки F13. Дальнейшие инструкции представлены в ячейке A21.","Украшения","Предполагаемые","Фактические",null,"Программа","Предполагаемые","Фактические"]
[null,"Цветы",{"v":200,"d":"200.00 ₽"},{"v":300,"d":"300.00 ₽"},null,"Исполнители"]
[null,"Свечи",{"$nulls":3},"Докладчики",{"v":30,"d":"30.00 ₽"}]
[null,"Освещение",{"$nulls":3},"Транспорт"]
[null,"Воздушные шары",{"$nulls":3},"Гостиница"]
[null,"Запасы бумаги",{"$nulls":3},"Другое"]
[null,"Итого",{"$f":"SUBTOTAL(109,Расходы_на_украшения[Предполагаемые])","v":{"v":200,"d":"200.00 ₽"}},{"$f":"SUBTOTAL(109,Расходы_на_украшения[Фактические])","v":{"v":300,"d":"300.00 ₽"}},null,"Итого",{"$f":"SUBTOTAL(109,Расходы_на_программу[Предполагаемые])","v":{"v":30,"d":"30.00 ₽"}},{"$f":"SUBTOTAL(103,Расходы_на_программу[Фактические])","v":{"v":0,"d":"0.00 ₽"}}]
[]
["Введите расходы на рекламу в таблице, начинающейся с ячейки справа, и расходы на призы в таблице, начинающейся с ячейки F21. Дальнейшие инструкции представлены в ячейке A27.","Реклама","Предполагаемые","Фактические",null,"Призы","Предполагаемые","Фактические"]
[null,"Графический дизайн",{"$nulls":3},"Ленты, таблички, награды"]
[null,"Фотокопирование и печать",{"v":20,"d":"20.00 ₽"},null,null,"Подарки",{"v":100,"d":"100.00 ₽"}]
[null,"Почтовые расходы",{"$nulls":3},"Итого",{"$f":"SUBTOTAL(109,Расходы_на_призы[Предполагаемые])","v":{"v":100,"d":"100.00 ₽"}},{"$f":"SUBTOTAL(103,Расходы_на_призы[Фактические])","v":{"v":0,"d":"0.00 ₽"}}]
[null,"Итого",{"$f":"SUBTOTAL(109,Расходы_на_рекламу[Предполагаемые])","v":{"v":20,"d":"20.00 ₽"}},{"$f":"SUBTOTAL(103,Расходы_на_рекламу[Фактические])","v":{"v":0,"d":"0.00 ₽"}}]
[]
["Введите прочие расходы в таблице, начинающейся с ячейки справа.","Прочее","Предполагаемые","Фактические"]
[null,"Телефон",null,{"v":13,"d":"13.00 ₽"}]
[null,"Транспорт",{"v":12,"d":"12.00 ₽"}]
[null,"Канцтовары"]
[null,"Службы факсов"]
[null,"Итого",{"$f":"SUBTOTAL(109,Прочие_расходы[Предполагаемые])","v":{"v":12,"d":"12.00 ₽"}},{"$f":"SUBTOTAL(103,Прочие_расходы[Фактические])","v":{"v":1,"d":"1.00 ₽"}}]

{"sheet":"Доходы","index":2,"n_rows":29,"n_cols":7,"rows_kept":29,"merged":[[0,1,0,2],[2,1,3,1]]}
["Введите запланированные и фактические доходы для каждой категории в соответствующих таблицах на этом листе. Заголовок этого листа автоматически обновляется в ячейках справа. Подзаголовок указывается в ячейке G1. В ячейках этого столбца содержатся полезные инструкции по использованию этого листа. Дальнейшие инструкции представлены в ячейке A3.",{"$f":"Расходы!B1","v":"Бюджет мероприятия"},null,{"$f":"Расходы!D1","v":"Название мероприятия"},null,null,"ДОХОДЫ"]
[]
["Надпись «Общий доход» находится в ячейке справа, надпись «Предполагаемые» — в ячейке F3, а надпись «Фактические» — в ячейке G3.","ОБЩИЙ ДОХОД",{"$nulls":3},"Предполагаемые","Фактические"]
["Предполагаемый общий доход автоматически вычисляется в ячейке F4, а фактический — в ячейке G4.",{"$nulls":4},{"$f":"SUM(Билеты[[#Totals],[Предполагаемый доход]],Реклама_в_программе[[#Totals],[Предполагаемый доход]],Экспоненты_и_продавцы[[#Totals],[Предполагаемый доход]],Продажа_товаров[[#Totals],[Предполагаемый доход]])","v":{"v":1936,"d":"1,936.00 ₽"}},{"$f":"SUM(Билеты[[#Totals],[Фактический доход]],Реклама_в_программе[[#Totals],[Фактический доход]],Экспоненты_и_продавцы[[#Totals],[Фактический доход]],Продажа_товаров[[#Totals],[Фактический доход]])","v":{"v":1831,"d":"1,831.00 ₽"}}]
["В ячейке справа находится надпись «Билеты».","БИЛЕТЫ"]
["Введите предполагаемое и фактическое количество посетителей, а также стоимость билетов в таблице, начинающейся с ячейки справа. Предполагаемые и фактические доходы от продажи билетов вычисляются автоматически. Дальнейшие инструкции представлены в ячейке A11.","Предполагаемое кол-во","Фактическое кол-во","Тип","Цена","Предполагаемый доход","Фактический доход"]
[null,300,278,"Взрослые @",{"v":5,"d":"5.00 ₽"},{"$f":"B7*E7","v":{"v":1500,"d":"1,500.00 ₽"}},{"$f":"C7*E7","v":{"v":1390,"d":"1,390.00 ₽"}}]
[null,197,195,"Дети @",{"v":2,"d":"2.00 ₽"},{"$f":"B8*E8","v":{"v":394,"d":"394.00 ₽"}},{"$f":"C8*E8","v":{"v":390,"d":"390.00 ₽"}}]
[null,42,51,"Другие @",{"v":1,"d":"1.00 ₽"},{"$f":"B9*E9","v":{"v":42,"d":"42.00 ₽"}},{"$f":"C9*E9","v":{"v":51,"d":"51.00 ₽"}}]
[null,"Итого",{"$nulls":3},{"$f":"SUBTOTAL(109,Билеты[Предполагаемый доход])","v":{"v":1936,"d":"1,936.00 ₽"}},{"$f":"SUBTOTAL(109,Билеты[Фактический доход])","v":{"v":1831,"d":"1,831.00 ₽"}}]
["В ячейке справа находится надпись «Реклама в программе».","РЕКЛАМА В ПРОГРАММЕ"]
["Введите предполагаемое и фактическое количество рекламных материалов в программе и рекламные тарифы в таблице, начинающейся с ячейки справа. Предполагаемые и фактические доходы от рекламы вычисляются автоматически. Дальнейшие инструкции представлены в ячейке A17.","Предполагаемое кол-во","Фактическое кол-во","Тип","Цена","Предполагаемый доход","Фактический доход"]
[null,12,null,"Обложка @",null,{"$f":"B13*E13","v":{"v":0,"d":"0.00 ₽"}},{"$f":"C13*E13","v":{"v":0,"d":"0.00 ₽"}}]
[null,null,158,"Половина страницы @",null,{"$f":"B14*E14","v":{"v":0,"d":"0.00 ₽"}},{"$f":"C14*E14","v":{"v":0,"d":"0.00 ₽"}}]
[null,4,null,"Четверть страницы @",null,{"$f":"B15*E15","v":{"v":0,"d":"0.00 ₽"}},{"$f":"C15*E15","v":{"v":0,"d":"0.00 ₽"}}]
[null,"Итого",{"$nulls":3},{"$f":"SUBTOTAL(109,Реклама_в_программе[Предполагаемый доход])","v":{"v":0,"d":"0.00 ₽"}},{"$f":"SUBTOTAL(109,Реклама_в_программе[Фактический доход])","v":{"v":0,"d":"0.00 ₽"}}]
["В ячейке справа находится надпись «Экспоненты и продавцы».","ЭКСПОНЕНТЫ И ПРОДАВЦЫ"]
["Введите предполагаемое и фактическое количество экспонентов и продавцов, а также тарифы на стенды в таблице, начинающейся с ячейки справа. Предполагаемые и фактические доходы вычисляются автоматически. Дальнейшие инструкции представлены в ячейке A23.","Предполагаемое кол-во","Фактическое кол-во","Тип","Цена","Предполагаемый доход","Фактический доход"]
[null,23,null,"Большие стенды @",null,{"$f":"B19*E19","v":{"v":0,"d":"0.00 ₽"}},{"$f":"C19*E19","v":{"v":0,"d":"0.00 ₽"}}]
[null,354,null,"Средние стенды @",null,{"$f":"B20*E20","v":{"v":0,"d":"0.00 ₽"}},{"$f":"C20*E20","v":{"v":0,"d":"0.00 ₽"}}]
[null,56,null,"Маленькие стенды @",null,{"$f":"B21*E21","v":{"v":0,"d":"0.00 ₽"}},{"$f":"C21*E21","v":{"v":0,"d":"0.00 ₽"}}]
[null,"Итого",{"$nulls":3},{"$f":"SUBTOTAL(109,Экспоненты_и_продавцы[Предполагаемый доход])","v":{"v":0,"d":"0.00 ₽"}},{"$f":"SUBTOTAL(109,Экспоненты_и_продавцы[Фактический доход])","v":{"v":0,"d":"0.00 ₽"}}]
["В ячейке справа находится надпись «Продажа товаров».","ПРОДАЖА ТОВАРОВ"]
["Введите предполагаемое и фактическое количество проданных товаров и тарифы в таблице, начинающейся с ячейки справа. Предполагаемые и фактические доходы вычисляются автоматически.","Предполагаемое кол-во","Фактическое кол-во","Тип","Цена","Предполагаемый доход","Фактический доход"]
[{"$nulls":3},"Товары @",null,{"$f":"B25*E25","v":{"v":0,"d":"0.00 ₽"}},{"$f":"C25*E25","v":{"v":0,"d":"0.00 ₽"}}]
[null,123,null,"Товары @",null,{"$f":"B26*E26","v":{"v":0,"d":"0.00 ₽"}},{"$f":"C26*E26","v":{"v":0,"d":"0.00 ₽"}}]
[{"$nulls":3},"Товары @",null,{"$f":"B27*E27","v":{"v":0,"d":"0.00 ₽"}},{"$f":"C27*E27","v":{"v":0,"d":"0.00 ₽"}}]
[null,13,null,"Товары @",null,{"$f":"B28*E28","v":{"v":0,"d":"0.00 ₽"}},{"$f":"C28*E28","v":{"v":0,"d":"0.00 ₽"}}]
[null,"Итого",{"$nulls":3},{"$f":"SUBTOTAL(109,Продажа_товаров[Предполагаемый доход])","v":{"v":0,"d":"0.00 ₽"}},{"$f":"SUBTOTAL(109,Продажа_товаров[Фактический доход])","v":{"v":0,"d":"0.00 ₽"}}]

{"sheet":"Сводка по прибыли и убыткам","index":3,"n_rows":8,"n_cols":7,"rows_kept":8,"merged":[[0,1,0,2]]}
["Представленные на этом листе сводка и диаграмма прибыли и убытков, в которых показаны общие доходы и расходы, обновляются автоматически. Заголовок этого листа автоматически обновляется в ячейках справа. Подзаголовок указывается в ячейках G1 и G2. В ячейках этого столбца содержатся полезные инструкции по использованию этого листа. Дальнейшие инструкции представлены в ячейке A3.",{"$f":"Расходы!B1","v":"Бюджет мероприятия"},null,{"$f":"Расходы!D1","v":"Название мероприятия"},null,null,"СВОДКА "]
[{"$nulls":6},"по прибыли и убыткам"]
["Линейчатая диаграмма для сравнения предполагаемых и фактических доходов и расходов находится в ячейке E3.",{"$nulls":3},"В этой ячейке находится линейчатая диаграмма, в которой сравниваются предполагаемые и фактические доходы и расходы."]
["Таблица «Сводка», начинающаяся с ячейки справа, обновляется автоматически. Дальнейшие инструкции представлены в ячейке A8."," Итого","Предполагаемые","Фактические"]
[null,"Общий доход",{"$f":"Доходы!F10","v":{"v":1936,"d":"1,936.00 ₽"}},{"$f":"Доходы!F4","v":{"v":1936,"d":"1,936.00 ₽"}}]
[null,"Общие расходы",{"$f":"Расходы!G4","v":{"v":882,"d":"882.00 ₽"}},{"$f":"Расходы!H4","v":{"v":302,"d":"302.00 ₽"}}]
[]
["Предполагаемая общая сумма прибыли или убытков автоматически вычисляется в ячейке C8, а фактическая — в ячейке D8.","Общая прибыль\n(или убытки)",{"$f":"C5-C6","v":{"v":1054,"d":"1,054.00 ₽"}},{"$f":"D5-D6","v":{"v":1634,"d":"1,634.00 ₽"}}]